[Event "Silves Open 2025"]
[Site "Fissul"]
[Date "2025.03.03"]
[Round "3.17"]
[White "Almeida, Marta Dias"]
[Black "Santos, Antonio P"]
[Result "0-1"]
[Annotator "TA"]
[ECO "A41"]
[WhiteElo "1790"]
[BlackElo "2209"]
[PlyCount "54"]
[EventDate "2025.03.03"]
[EventType "swiss"]
[EventCountry "POR"]
[SourceTitle "playchess.com"]
[Source "ChessBase"]
[SourceQuality "1"]
[TimeControl "5400+30"]

{[%evp 9,54,-23,32,4,4,4,4,4,4,10,12,2,29,1,5,9,9,1,48,48,47,0,8,-12,-5,-15,-1,-25,-24,-45,-52,-77,-83,-131,-125,-308,-306,-243,-249,-471,-454,-459,-450,-512,-524,-29997,-29992]} 1. d4 {[%emt 1:31:00]} d6 {[%emt 1:31:00]} 2. c4 {[%emt 0:00:30]} e5 {[%emt 0:00:30]} 3. d5 {[%emt 0:00:30]} f5 {[%emt 0:00:30]} 4. Nc3 {[%emt 0:00:30]} Nf6 {[%emt 0:00:30]} 5. Nf3 {[%emt 0:00:30]} g6 {[%emt 0:00:30]} (5... Be7 $11) 6. Bg5 {[%emt 0:00:30][%cal Oe2e4] A41: 1 d4 d6: Tartakower System and Modern Defence.} h6 {[%emt 0:00:30]} 7. Bxf6 {[%emt 0:00:30]} Qxf6 {[%emt 0:00:30]} 8. e4 {[%emt 0:00:30] The position is equal.} Bg7 {[%emt 0:00:30]} 9. Bd3 {[%emt 0:00:30]} O-O {[%emt 0:00:30]} 10. O-O {[%emt 0:00:30]} f4 {[%emt 0:00:30]} 11. Nd2 $146 {[%emt 0:00:30]} ({Predecessor:} 11. b4 g5 12. h3 h5 13. Nh2 Qg6 14. Be2 g4 15. hxg4 hxg4 16. Bxg4 Nd7 17. Be6+ {1-0 Wang,D (1969)-Rushbrooke,R (2094) Titled Tuesday intern op 04th Feb Late blitz 2025 (4)}) 11... Nd7 {[%emt 0:00:30]} 12. b4 {[%emt 0:00:30]} b6 {[%emt 0:00:30]} 13. f3 {[%emt 0:00:30] Black is weak on the light squares} Rf7 {[%emt 0:00:30]} (13... a5 $11) 14. Nb3 $1 $14 {[%emt 0:00:30]} Bf8 {[%emt 0:00:30]} 15. Rc1 {[%emt 0:00:30]} (15. a4 $14 {is superior.}) 15... g5 {[%emt 0:00:30]} 16. Na4 {[%emt 0:00:30]} a5 {[%emt 0:00:30]} 17. bxa5 {[%emt 0:00:30]} Nc5 {[%emt 0:00:30]} 18. Naxc5 {[%emt 0:00:30]} bxc5 {[%emt 0:00:30]} 19. Qd2 {[%emt 0:00:30]} h5 $36 {[%emt 0:00:30][%mdl 3072] Black has compensation. Black is more active.} 20. a6 {[%emt 0:00:30]} g4 {[%emt 0:00:30]} (20... Rxa6 21. a4 $17) 21. Be2 {[%emt 0:00:30]} (21. Rb1 $142) 21... Rg7 $17 {[%emt 0:00:30]} 22. Rfd1 $2 {[%emt 0:00:30] This costs White the game.} (22. a4 $17 {might work better.}) 22... Qh4 $19 {[%emt 0:00:30]} (22... Rxa6 23. Rb1 $19) 23. Rc2 {[%emt 0:00:30]} g3 {[%emt 0:00:30]} (23... Bxa6 24. Qa5) (23... Rxa6 24. Nc1) (23... gxf3 24. Bxf3 Rxa6 25. Rb1 $17) 24. h3 {[%emt 0:00:30] [#]} (24. hxg3 fxg3 (24... Qxg3 $2 25. Bf1 $19) 25. Qe3) 24... Bxh3 $1 {[%emt 0:00:30][%mdl 512]} 25. gxh3 {[%emt 0:00:30] [#]} g2 {[%emt 0:00:30] Prevents Bf1.} ({Stronger than} 25... Rxa6 26. Kg2 $16) (25... Qxh3 26. Bf1 g2 27. Bxg2 $14) 26. Qe1 {[%emt 0:00:30]} Qxh3 {[%emt 0:00:30] ( -> ...Qh1+)} 27. Kf2 {[%emt 0:00:30]} Be7 {[%emt 0:00:30] Weighted Error Value: White=0.62/Black=0.07 (flawless)   Loses game:     	White=1     	---        Mistake:       	White=3     	Black=1      Inaccurate:     	White=2     	Black=1      OK:         	White=5     	Black=10     Best:        	---       	Black=1      Strong:       	White=1     	---        Brilliant:      	---       	Black=1} 0-1

[Event "Silves Open 2025"]
[Site "Fissul"]
[Date "2025.03.03"]
[Round "3.18"]
[White "Albuquerque, Eduardo Ferreira"]
[Black "Silverio, Vitor Luis De Jesus"]
[Result "1-0"]
[Annotator "TA"]
[ECO "A41"]
[WhiteElo "1897"]
[BlackElo "2143"]
[PlyCount "109"]
[EventDate "2025.03.03"]
[EventType "swiss"]
[EventCountry "POR"]
[SourceTitle "playchess.com"]
[Source "ChessBase"]
[SourceQuality "1"]
[TimeControl "5400+30"]

{[%evp 9,109,47,45,44,40,50,97,94,87,94,144,75,110,129,114,77,171,177,179,171,185,169,357,331,340,243,450,423,494,295,469,362,333,215,358,200,190,202,318,303,549,431,431,433,602,581,604,596,564,376,338,284,583,567,702,335,698,705,679,672,597,377,408,392,398,395,393,370,451,420,446,459,430,435,429,431,453,387,513,532,543,531,535,516,710,711,728,732,685,660,781,778,744,737,719,710,29980,29981,29981,29982,29983,29983]} 1. d4 {[%emt 0:00:05]} g6 {[%emt 0:00:07]} 2. Nf3 {[%emt 0:00:39]} Bg7 {[%emt 0:00:07]} 3. c4 {[%emt 0:00:18]} d6 {[%emt 0:00:28]} 4. e4 {[%emt 0:00:39]} a6 {[%emt 0:03:23]} 5. Nc3 {[%emt 0:01:16]} Nc6 {[%emt 0:02:00]} 6. Be2 {[%emt 0:01:12] A41: 1 d4 d6: Tartakower System and Modern Defence.} Bg4 {[%emt 0:02:29]} 7. Be3 {[%emt 0:01:13]} Qd7 $146 {[%emt 0:06:23]} (7... e5 $14) (7... e5 8. d5 Nce7 9. c5 Bxf3 10. Bxf3 Bh6 11. Bxh6 Nxh6 12. Qd2 Nhg8 13. b4 h5 {1-0 Giri,A (2764)-Sadhwani,R (2620) Chess.com Rapid CGC KO 2022 (2.3)}) 8. O-O $16 {[%emt 0:04:47] White is better.} h5 {[%emt 0:07:09]} 9. d5 {[%emt 0:03:12]} Nd8 {[%emt 0:01:07]} ({Better is} 9... Ne5) 10. Bd4 {[%emt 0:05:15]} (10. Qb3 $142) 10... f6 {[%emt 0:03:09]} 11. Nh4 {[%emt 0:04:15][%cal Of2f3] White is more active.} Bxe2 {[%emt 0:03:55]} 12. Qxe2 {[%emt 0:06:23]} g5 {[%emt 0:06:07] [#]} (12... e5 $16) 13. Nf5 $1 $36 {[%emt 0:02:34][%mdl 2048] White has strong initiative.} Bf8 {[%emt 0:00:37] Black is weak on the light squares} 14. Rad1 {[%emt 0:05:27]} Nf7 {[%emt 0:01:21]} 15. f4 {[%emt 0:05:38]} g4 $2 {[%emt 0:01:33]} (15... gxf4 16. Rxf4 c5) 16. Nh4 {[%emt 0:02:10]} Bg7 {[%emt 0:00:09]} 17. Qf2 {[%emt 0:02:46][%cal Oe4e5]} O-O-O $2 {[%emt 0:02:13]} (17... Ngh6 18. Qc2 Rg8) 18. b4 {[%emt 0:01:41]} Re8 {[%emt 0:01:03]} 19. c5 {[%emt 0:02:47]} (19. b5 $142) 19... e5 {[%emt 0:04:37]} (19... e6 20. Qc2 dxc5) 20. Be3 {[%emt 0:02:50][%cal Oc5c6]} exf4 {[%emt 0:04:29]} 21. Qxf4 {[%emt 0:07:26]} f5 {[%emt 0:10:30]} (21... Ne7 22. a4 Kb8) 22. Bd4 {[%emt 0:00:57]} (22. Qxf5 Qxf5 23. Rxf5 Ngh6 $17) (22. c6 $142 bxc6 23. dxc6 (23. Qxf5 Qxf5 24. Rxf5 Ngh6 $19)) 22... Bxd4+ {[%emt 0:07:05]} 23. Rxd4 {[%emt 0:00:07]} Ne7 {[%emt 0:31:59]} (23... Kb8 $142 24. c6 (24. exf5 Nf6 $16) (24. Qxf5 Qxf5 25. Nxf5 Rh7 $18) (24. Nxf5 Ne5 $18) 24... bxc6 25. dxc6 (25. exf5 Nf6 $16) (25. Nxf5 Nd8 $16) (25. Qxf5 Qxf5 26. exf5 Ne7 $14) 25... Qxc6) 24. exf5 {[%emt 0:03:38] aiming for f6.} Rhg8 $2 {[%emt 0:00:00]} (24... Kb8 {is a better defense.} 25. f6 Nc8) 25. Ne4 {[%emt 0:03:32]} dxc5 {[%emt 0:00:00]} 26. Nf6 {[%emt 0:01:05]} ({Resist} 26. bxc5 Nc6 $18 (26... Nxd5 $2 {loses.} 27. Nf6 $18)) (26. Nxc5 Qd6 27. f6 Qxf4 28. Rfxf4 b6 29. Nxa6 (29. fxe7 bxc5 30. bxc5 Rxe7 $18) 29... Kb7 30. fxe7 Rxe7) 26... Qb5 {[%emt 0:00:00]} 27. Nxe8 {[%emt 0:00:53]} Rxe8 {[%emt 0:00:00]} 28. bxc5 {[%emt 0:06:52]} Qxc5 {[%emt 0:00:00]} 29. Rc1 {[%emt 0:00:54]} Qb6 {[%emt 0:00:00]} 30. Kh1 {[%emt 0:01:25]} ({Stronger than} 30. f6 Nxd5 31. Qd2 (31. Qf5+ Kb8 $15) 31... Kb8 $11) 30... Rd8 {[%emt 0:00:00] [#]} (30... Kb8 31. f6 Nc8) 31. Ng6 $1 {[%emt 0:01:10]} Ng8 {[%emt 0:00:00][%cal Be7g8,Bg8f6,Bf6d5][%mdl 32]} (31... Rd7 32. Nxe7+) 32. Ne5 {[%emt 0:07:52]} (32. Rdc4 $142 {[%cal Rc4c7]} Rd6 33. Qe4) 32... Nd6 $2 {[%emt 0:00:00]} (32... Nxe5 33. Qxe5 Qd6 34. Qxd6 Rxd6) 33. Nc4 {[%emt 0:00:57]} Nxc4 {[%emt 0:00:00]} 34. Rdxc4 {[%emt 0:00:08]} Rd7 {[%emt 0:00:00]} 35. Qe5 {[%emt 0:04:08][%cal Oc4c7] Threatening mate with Rxc7+!.} Nf6 {[%emt 0:00:00]} 36. Qe6 {[%emt 0:04:27]} Nxd5 {[%emt 0:00:00] [#]} 37. Rxc7+ $3 {[%emt 0:01:30][%mdl 512]} Qxc7 {[%emt 0:00:00]} 38. Rxc7+ {[%emt 0:00:28]} Kxc7 {[%emt 0:00:00][%mdl 4096] Endgame KQ-KRN} 39. Kg1 {[%emt 0:01:28]} Rd6 {[%emt 0:02:46]} 40. Qf7+ {[%emt 0:00:24]} Kc6 {[%emt 0:00:04]} 41. Qxh5 {[%emt 0:00:40]} Nf6 {[%emt 0:00:06]} 42. Qf7 {[%emt 0:00:46]} b5 {[%emt 0:00:28]} 43. Qb3 {[%emt 0:01:13]} Ne4 {[%emt 0:01:36]} 44. Qc2+ {[%emt 0:00:45]} Kd5 {[%emt 0:00:07]} 45. Qd1+ {[%emt 0:00:38]} Ke5 {[%emt 0:00:46]} 46. Qxg4 {[%emt 0:00:23]} Rf6 {[%emt 0:00:09]} 47. h4 {[%emt 0:00:41]} Rxf5 {[%emt 0:00:12]} 48. Qg7+ {[%emt 0:00:28]} Kf4 {[%emt 0:02:41]} 49. Qh6+ {[%emt 0:01:43]} Kg4 {[%emt 0:01:59]} 50. Qg6+ {[%emt 0:00:20]} Kf4 {[%emt 0:00:07]} 51. Qxa6 {[%emt 0:00:33]} Rh5 {[%emt 0:00:43]} 52. Qc6 {[%emt 0:01:44]} Ke3 {[%emt 0:01:15]} 53. Qc1+ {[%emt 0:00:25] White mates.} Nd2 {[%emt 0:01:02]} 54. Qe1+ {[%emt 0:00:45]} Kd3 {[%emt 0:00:10]} 55. Qg3+ {[%emt 0:00:11] Weighted Error Value: White=0.44/Black=0.78  Mistake:       	White=4     	Black=11     Inaccurate:     	White=2     	Black=4      OK:         	White=20    	Black=12     Best:        	---       	Black=1      Strong:       	White=1     	---        Brilliant:      	White=1     	---} 1-0

[Event "Silves Open 2025"]
[Site "Fissul"]
[Date "2025.03.03"]
[Round "3.19"]
[White "Esteves, Goncalo Maria Franco"]
[Black "Munno Moyano, Mario"]
[Result "1-0"]
[Annotator "TA"]
[ECO "A29"]
[WhiteElo "1962"]
[BlackElo "1755"]
[PlyCount "35"]
[EventDate "2025.03.03"]
[EventType "swiss"]
[EventCountry "POR"]
[SourceTitle "playchess.com"]
[Source "ChessBase"]
[SourceQuality "1"]
[TimeControl "5400+30"]

{[%evp 9,35,-9,10,0,0,0,8,-10,-3,-5,33,-16,-4,-31,-29,-20,-22,-35,0,-21,-14,-13,-5,-20,31,22,29998,29999]} 1. c4 {[%emt 1:31:00]} Nf6 {[%emt 1:31:00]} 2. Nc3 {[%emt 0:00:30]} e5 {[%emt 0:00:30]} 3. Nf3 {[%emt 0:00:30]} Nc6 {[%emt 0:00:30]} 4. g3 {[%emt 0:00:30]} Bb4 {[%emt 0:00:30]} 5. Nd5 {[%emt 0:00:30]} a5 {[%emt 0:00:30]} 6. a3 {[%emt 0:00:30] A29: English Opening: Four Knights Variation with 4 g3.} Bc5 {[%emt 0:00:30]} 7. Bg2 {[%emt 0:00:30]} d6 {[%emt 0:00:30]} 8. d3 {[%emt 0:00:30] The position is equal.} Nxd5 {[%emt 0:00:30]} 9. cxd5 {[%emt 0:00:30]} Nb8 $146 {[%emt 0:00:30]} (9... Ne7 10. d4 exd4 11. Nxd4 O-O 12. O-O Bg4 13. h3 Bd7 14. e4 f5 15. Kh2 fxe4 16. Bxe4 {½-½ Tonic,M (2036)-Mladenovic,S (2359) SRB-chT Central 2024 (8.5)}) 10. e4 {[%emt 0:00:30]} (10. d4 $14 exd4 11. Bg5 (11. Nxd4 a4 $14)) 10... O-O {[%emt 0:00:30]} 11. O-O {[%emt 0:00:30]} Bg4 {[%emt 0:00:30]} 12. h3 {[%emt 0:00:30][%cal Bh2h3,Bh3h4,Bh4h5,Bh5h6][%mdl 32]} Bxf3 {[%emt 0:00:30]} 13. Qxf3 {[%emt 0:00:30]} a4 {[%emt 0:00:30]} 14. Be3 {[%emt 0:00:30]} Na6 {[%emt 0:00:30]} 15. h4 {[%emt 0:00:30]} Qd7 {[%emt 0:00:30]} 16. h5 {[%emt 0:00:30]} Rae8 {[%emt 0:00:30]} (16... h6 $11) 17. h6 $14 {[%emt 0:00:30] hxg7 would now be deadly.} g6 {[%emt 0:00:30][%mdl 8192] [#]} (17... f5 $11) 18. Qf6 {[%emt 0:00:30] Weighted Error Value: White=0.13 (very precise) /Black=0.60  Loses game:     	---       	Black=1      Mistake:       	White=1     	Black=1      Inaccurate:     	White=1     	Black=2      OK:         	---       	Black=4      Best:        	White=2     	---} 1-0

[Event "Silves Open 2025"]
[Site "Fissul"]
[Date "2025.03.03"]
[Round "3.20"]
[White "Ramos, Vitorino"]
[Black "Moldovan, Lucas Gabriel"]
[Result "0-1"]
[Annotator "TA"]
[ECO "B23"]
[WhiteElo "1792"]
[BlackElo "1992"]
[PlyCount "62"]
[EventDate "2025.03.03"]
[EventType "swiss"]
[EventCountry "POR"]
[SourceTitle "playchess.com"]
[Source "ChessBase"]
[SourceQuality "1"]
[TimeControl "5400+30"]

{[%evp 9,62,-23,-8,-40,-29,-44,-17,-92,-91,-177,-169,-184,-102,-102,-87,-82,-76,-87,-63,-68,-62,-69,-47,-100,-82,-164,-143,-185,-72,-205,-183,-203,-125,-161,-97,-307,-321,-318,-188,-498,-452,-440,-483,-839,-837,-820,-829,-832,-830,-733,-785,-1290,-1323,-1322,-1314]} 1. e4 {[%emt 1:31:00]} c5 {[%emt 1:31:00]} 2. Nc3 {[%emt 0:00:30]} a6 {[%emt 0:00:30]} 3. a4 {[%emt 0:00:30]} e6 {[%emt 0:00:30]} 4. f4 {[%emt 0:00:30]} Nc6 {[%emt 0:00:30]} 5. Nf3 {[%emt 0:00:30]} d5 {[%emt 0:00:30]} 6. e5 {[%emt 0:00:30] B23: Closed Sicilian: Lines without g3.} (6. d3 $5) 6... Be7 {[%emt 0:00:30]} 7. g3 {[%emt 0:00:30]} h5 {[%emt 0:00:30]} 8. h3 {[%emt 0:00:30]} (8. d4 $11) 8... Nh6 $17 {[%emt 0:00:30]} 9. Qe2 $146 {[%emt 0:00:30]} (9. Ne2 $17) (9. Bg2 Nf5 10. Ne2 Ncd4 11. Nfxd4 cxd4 12. d3 g5 13. Bf3 gxf4 14. Bxf4 Bg5 15. Qd2 {1-0 Jacel,L (1945)-Smieja,A Tarnowskie Gory Piasta Memorial 5th 2007 (2)}) 9... Nf5 $19 {[%emt 0:00:30][%cal Oc6d4] [#]} 10. Qf2 {[%emt 0:00:30]} Nfd4 {[%emt 0:00:30]} (10... Nb4 $19 11. d3 Bd7) 11. d3 $17 {[%emt 0:00:30]} Nxf3+ {[%emt 0:00:30]} 12. Qxf3 {[%emt 0:00:30]} Nd4 {[%emt 0:00:30]} 13. Qf2 {[%emt 0:00:30]} Nf5 {[%emt 0:00:30][%cal Of5g3]} 14. Ne2 {[%emt 0:00:30]} Bd7 {[%emt 0:00:30]} 15. Bg2 {[%emt 0:00:30]} Rc8 {[%emt 0:00:30]} 16. c3 {[%emt 0:00:30]} (16. O-O $15) 16... c4 {[%emt 0:00:30] Black is more active.} 17. dxc4 {[%emt 0:00:30]} (17. d4 $17) 17... Rxc4 $19 {[%emt 0:00:30][%cal Oe7c5]} 18. b3 {[%emt 0:00:30]} Rc8 {[%emt 0:00:30]} (18... Bc5 $19 19. Qf3 (19. Qf1 Nxg3 20. Nxg3 Rxc3 $17) 19... Re4) 19. b4 {[%emt 0:00:30]} (19. Be3 $17) 19... a5 {[%emt 0:00:30]} 20. Bd2 {[%emt 0:00:30]} Rc4 {[%emt 0:00:30]} 21. b5 {[%emt 0:00:30]} Rh6 {[%emt 0:00:30]} (21... Qc7 $19 22. Qf3 Bc5) 22. Nd4 $2 {[%emt 0:00:30] [#]} (22. Be3 $17) 22... Nxg3 $1 {[%emt 0:00:30]} 23. Rg1 {[%emt 0:00:30]} (23. Qxg3 $2 Bh4 $19) 23... Ne4 {[%emt 0:00:30]} (23... Rg6 $142 {Hoping for ...Qc7.} 24. Kd1 (24. Bxd5 $2 exd5 25. Qh2 h4 $19) 24... Bc5) 24. Qf3 $2 {[%emt 0:00:30]} (24. Bxe4 {was the crucial defense.} Bh4 (24... dxe4 25. Rxg7 Rh8 26. Qe3 $11) 25. Bd3 Bxf2+ 26. Kxf2) 24... Bh4+ {[%emt 0:00:30] Black is clearly winning.} 25. Kd1 {[%emt 0:00:30]} Bf2 {[%emt 0:00:30]} 26. Rf1 {[%emt 0:00:30]} (26. Ne2 $142 Bxg1 27. Nxg1) 26... Bxd4 {[%emt 0:00:30]} 27. cxd4 {[%emt 0:00:30]} Rxd4 {[%emt 0:00:30]} 28. Ra2 {[%emt 0:00:30]} Nxd2 {[%emt 0:00:30]} 29. Rxd2 {[%emt 0:00:30]} Rxa4 {[%emt 0:00:30]} 30. f5 {[%emt 0:00:30]} Ra1+ {[%emt 0:00:30]} 31. Ke2 {[%emt 0:00:30]} Bxb5+ {[%emt 0:00:30] Weighted Error Value: White=0.87/Black=0.26 (precise)   Loses game:     	White=1     	---        Mistake:       	White=7     	Black=4      Inaccurate:     	---       	Black=2      OK:         	White=8     	Black=7      Best:        	---       	Black=1} 0-1

[Event "Silves Open 2025"]
[Site "Fissul"]
[Date "2025.03.03"]
[Round "3.21"]
[White "Sanchez Guirado, Francisco"]
[Black "Crow, Steve"]
[Result "0-1"]
[Annotator "TA"]
[ECO "A10"]
[WhiteElo "2286"]
[BlackElo "1742"]
[PlyCount "73"]
[EventDate "2025.03.03"]
[EventType "swiss"]
[EventCountry "POR"]
[SourceTitle "playchess.com"]
[Source "ChessBase"]
[SourceQuality "1"]
[TimeControl "5400+30"]

{[%evp 9,72,23,30,19,35,28,56,67,76,75,94,56,48,30,39,31,66,50,72,0,58,-1,29,23,28,28,115,110,116,122,189,142,150,136,135,112,113,44,89,59,68,60,76,70,75,49,252,51,106,108,104,109,603,603,708,666,750,743,804,798,909,923,29991,29989,29999]} 1. c4 {[%emt 0:00:14]} f5 {[%emt 0:00:43]} 2. b4 {[%emt 0:01:24]} a5 {[%emt 0:04:36]} (2... d6 3. Bb2 e5 4. e3 Nf6 5. d4 e4 6. d5 g6 7. Ne2 Bg7 8. Nf4 O-O 9. h4 Qe8 10. Be2 a5 11. b5 Nh5 12. Bxg7 Nxg7 {1-0 Carlsen,M (2835)-Vlassov,N (2401) Wch Rapid St Petersburg 2018 (4)}) 3. b5 {[%emt 0:00:47]} e5 {[%emt 0:02:27]} 4. Bb2 {[%emt 0:03:01]} d6 {[%emt 0:02:32]} 5. g3 {[%emt 0:00:26]} c6 {[%emt 0:06:05]} 6. Bg2 {[%emt 0:01:39] A10: English Opening: Unusual Replies for Black.} Nf6 {[%emt 0:05:21]} 7. Nf3 {[%emt 0:07:22]} e4 {[%emt 0:05:22]} 8. Nd4 {[%emt 0:01:21] White is slightly better.} d5 {[%emt 0:05:53]} 9. cxd5 {[%emt 1:18:46]} Qxd5 {[%emt 0:07:12]} 10. bxc6 {[%emt 0:00:00]} Nxc6 {[%emt 0:01:35]} 11. Nxc6 {[%emt 0:00:00]} Qxc6 {[%emt 0:00:46]} 12. O-O {[%emt 0:00:00]} Be7 {[%emt 0:04:15]} 13. d3 {[%emt 0:00:00]} Qb6 {[%emt 0:05:22]} 14. Be5 {[%emt 0:00:00]} (14. Qc2 $16) 14... O-O {[%emt 0:04:36][%cal Bh8f8,Bf8d8,Bd8d6,Bd6c6][%mdl 32]} (14... Ng4 $11 15. Bxg7 Rg8) 15. e3 {[%emt 0:00:00]} (15. dxe4 $14 Qe6 16. Qb3 fxe4 17. Nc3) 15... Rd8 {[%emt 0:09:25]} 16. Bd4 $1 {[%emt 0:00:00]} Qe6 {[%emt 0:09:58]} 17. Nc3 {[%emt 0:00:00]} exd3 {[%emt 0:04:07]} (17... Bd7 $1 $11) 18. Qxd3 $16 {[%emt 0:00:00]} Bc5 {[%emt 0:01:33][%cal Of5f4]} 19. Nb5 {[%emt 0:00:00]} Bd6 {[%emt 0:05:08] Repels Nc7} (19... Qf7 $16) 20. Nxd6 {[%emt 0:00:00]} (20. Bxf6 Qxf6 21. Rad1 Ra6 22. Qb3+ Kh8 $16) (20. Rfc1 $18) 20... Rxd6 {[%emt 0:01:13]} 21. Qb5 {[%emt 0:00:00][%cal Of1c1]} Ne4 {[%emt 0:03:01]} 22. Qb2 {[%emt 0:00:00]} Qf7 {[%emt 0:01:34]} 23. Be5 {[%emt 0:00:00]} ({White should play} 23. Rab1 $16) 23... Rc6 {[%emt 0:01:33]} 24. Rac1 {[%emt 0:00:00]} Be6 {[%emt 0:03:11]} 25. a3 {[%emt 0:00:00]} Rac8 {[%emt 0:00:18]} 26. Rxc6 {[%emt 0:00:00]} Rxc6 {[%emt 0:00:07]} 27. Rd1 $36 {[%emt 0:00:00][%mdl 2048] White is more active.} Qe7 {[%emt 0:00:29] [#] Dodges Rd8+} (27... h6 $14) 28. Rb1 $2 {[%emt 0:01:32]} (28. Bxg7 $1 $18 {aiming for Bxe4.} Bc4 29. g4) 28... Rc5 {[%emt 0:00:51]} ({Black should play} 28... Bd5 $14) 29. Bd4 $1 {[%emt 0:00:42] A strong pair of Bishops.} (29. Qxb7 $2 {loses.} Qxb7 30. Rxb7 Rc1+ (30... Rxe5 $2 31. Ra7 $19) 31. Bf1 Bc4 32. Rxg7+ Kf8 $19) 29... Rc7 {[%emt 0:00:05]} 30. Bb6 {[%emt 0:00:54]} Rc3 $2 {[%emt 0:01:04][%mdl 8192]} (30... Rd7 $16) 31. Bxe4 $18 {[%emt 0:01:34][%cal Bg2e4,Be4b1,Bb1d3,Bd3b5][%mdl 32]} (31. Bxa5 Rb3 32. Qc2 Qxa3 $11) 31... Rb3 {[%emt 0:00:11]} 32. Qe5 {[%emt 0:00:51] [#]} Rxb1+ {[%emt 0:02:17]} 33. Bxb1 {[%emt 0:00:11]} Qd7 {[%emt 0:01:08]} 34. Bd4 {[%emt 0:00:35]} Kf8 {[%emt 0:01:05]} 35. Bd3 {[%emt 0:00:43][%cal Od3b5]} g6 {[%emt 0:00:18]} 36. Bb5 {[%emt 0:00:24]} Qd5 {[%emt 0:00:57]} 37. Qg7# {[%emt 0:00:14][%mdl 32768] Weighted Error Value: White=0.24 (precise) /Black=0.83 Loss on time!?  Loses game:     	---       	Black=2      Missed win:     	White=1     	---        Mistake:       	White=4     	Black=4      Inaccurate:     	White=2     	Black=4      OK:         	White=6     	Black=5      Best:        	White=2     	Black=1      Strong:       	White=2     	---} 0-1